[Event "Titled Tuesday Blitz October 31 Late 2023"]
[White "Olsen, Filip Boe"]
[Black "Nikolova, Adriana"]
[WhiteFideId "1440640"]
[BlackFideId "2908689"]
[WhiteElo "2629"]
[BlackElo "2391"]
[Result "1-0"]
[Round "8"]
[TimeControl "180+1"]
[Date "2023.10.31"]
[WhiteClock "0:01:08"]
[BlackClock "0:00:14"]
[Board "94"]

1. e4 {[%clk 0:03:00]}  c5 {[%clk 0:03:00]} 2. e5 {[%clk 0:03:01]}  Nc6 {[%clk 0:03:00]} 3. Nf3 {[%clk 0:03:01]}  g6 {[%clk 0:03:00]} 4. Na3 {[%clk 0:03:00]}  Bg7 {[%clk 0:03:00]} 5. Qe2 {[%clk 0:02:59]}  d5 {[%clk 0:02:51]} 6. exd6 {[%clk 0:02:58]}  Qxd6 {[%clk 0:02:51]} 7. Nc4 {[%clk 0:02:58]}  Qd8 {[%clk 0:02:50]} 8. g3 {[%clk 0:02:57]}  Qd5 {[%clk 0:02:35]} 9. Bg2 {[%clk 0:02:53]}  Nd4 {[%clk 0:02:34]} 10. Nxd4 {[%clk 0:02:22]}  Qxg2 {[%clk 0:02:33]} 11. Qf3 {[%clk 0:02:22]}  Bh3 {[%clk 0:02:24]} 12. Qxg2 {[%clk 0:02:20]}  Bxg2 {[%clk 0:02:25]} 13. Rg1 {[%clk 0:02:21]}  Bd5 {[%clk 0:02:08]} 14. Ne3 {[%clk 0:02:20]}  Be4 {[%clk 0:01:35]} 15. Nb5 {[%clk 0:02:18]}  Be5 {[%clk 0:01:26]} 16. f4 {[%clk 0:02:14]}  Bb8 {[%clk 0:01:26]} 17. d3 {[%clk 0:02:15]}  Bc6 {[%clk 0:01:26]} 18. Nc3 {[%clk 0:02:15]}  Nf6 {[%clk 0:01:20]} 19. b3 {[%clk 0:02:15]}  Bc7 {[%clk 0:01:19]} 20. Bb2 {[%clk 0:02:14]}  O-O {[%clk 0:01:18]} 21. O-O-O {[%clk 0:02:12]}  e6 {[%clk 0:01:19]} 22. a4 {[%clk 0:02:10]}  a6 {[%clk 0:01:04]} 23. Nc4 {[%clk 0:01:53]}  Nd5 {[%clk 0:00:52]} 24. Ne4 {[%clk 0:01:52]}  b6 {[%clk 0:00:47]} 25. a5 {[%clk 0:01:48]}  b5 {[%clk 0:00:47]} 26. Ne5 {[%clk 0:01:48]}  Bxe5 {[%clk 0:00:20]} 27. Bxe5 {[%clk 0:01:49]}  c4 {[%clk 0:00:17]} 28. bxc4 {[%clk 0:01:49]}  bxc4 {[%clk 0:00:18]} 29. dxc4 {[%clk 0:01:50]}  Ne3 {[%clk 0:00:06]} 30. Nf6+ {[%clk 0:01:50]}  Kg7 {[%clk 0:00:06]} 31. Rd6 {[%clk 0:01:49]}  Bf3 {[%clk 0:00:05]} 32. Nd7+ {[%clk 0:01:46]}  f6 {[%clk 0:00:06]} 33. Nxf8 {[%clk 0:01:46]}  Rxf8 {[%clk 0:00:05]} 34. Rd7+ {[%clk 0:01:44]}  Rf7 {[%clk 0:00:04]} 35. Rxf7+ {[%clk 0:01:43]}  Kxf7 {[%clk 0:00:05]} 36. Bc3 {[%clk 0:01:41]}  Nxc4 {[%clk 0:00:06]} 37. Rf1 {[%clk 0:01:40]}  Bd5 {[%clk 0:00:06]} 38. Re1 {[%clk 0:01:36]}  h5 {[%clk 0:00:06]} 39. Bb4 {[%clk 0:01:35]}  Bc6 {[%clk 0:00:05]} 40. c3 {[%clk 0:01:35]}  Bd5 {[%clk 0:00:06]} 41. Kc2 {[%clk 0:01:34]}  Bc6 {[%clk 0:00:06]} 42. Kd3 {[%clk 0:01:34]}  Bd5 {[%clk 0:00:07]} 43. Kd4 {[%clk 0:01:34]}  Nb2 {[%clk 0:00:06]} 44. Re2 {[%clk 0:01:29]}  Nc4 {[%clk 0:00:07]} 45. Kc5 {[%clk 0:01:29]}  g5 {[%clk 0:00:02]} 46. fxg5 {[%clk 0:01:27]}  fxg5 {[%clk 0:00:03]} 47. Rf2+ {[%clk 0:01:25]}  Kg6 {[%clk 0:00:04]} 48. Kd4 {[%clk 0:01:24]}  h4 {[%clk 0:00:03]} 49. gxh4 {[%clk 0:01:23]}  gxh4 {[%clk 0:00:04]} 50. h3 {[%clk 0:01:22]}  Kg5 {[%clk 0:00:04]} 51. Be7+ {[%clk 0:01:22]}  Kh5 {[%clk 0:00:04]} 52. Rf8 {[%clk 0:01:21]}  Nd2 {[%clk 0:00:04]} 53. Rh8+ {[%clk 0:01:20]}  Kg6 {[%clk 0:00:04]} 54. Bxh4 {[%clk 0:01:18]}  Kg7 {[%clk 0:00:03]} 55. Rh5 {[%clk 0:01:18]}  Kg6 {[%clk 0:00:02]} 56. Rg5+ {[%clk 0:01:16]}  Kf7 {[%clk 0:00:03]} 57. Rxd5 {[%clk 0:01:13]}  exd5 {[%clk 0:00:02]} 58. Kxd5 {[%clk 0:01:14]}  Nb3 {[%clk 0:00:03]} 59. Bd8 {[%clk 0:01:13]}  Ke8 {[%clk 0:00:03]} 60. Bb6 {[%clk 0:01:13]}  Nd2 {[%clk 0:00:03]} 61. h4 {[%clk 0:01:13]}  Nf3 {[%clk 0:00:03]} 62. h5 {[%clk 0:01:14]}  Ng5 {[%clk 0:00:03]} 63. h6 {[%clk 0:01:14]}  Nh7 {[%clk 0:00:04]} 64. c4 {[%clk 0:01:14]}  Kd7 {[%clk 0:00:04]} 65. Kc5 {[%clk 0:01:11]}  Nf6 {[%clk 0:00:05]} 66. Ba7 {[%clk 0:01:11]}  Ne4+ {[%clk 0:00:04]} 67. Kb6 {[%clk 0:01:10]}  Nf6 {[%clk 0:00:05]} 68. c5 {[%clk 0:01:11]}  Kc8 {[%clk 0:00:06]} 69. Kxa6 {[%clk 0:01:10]}  Nh7 {[%clk 0:00:06]} 70. Bb6 {[%clk 0:01:10]}  Kb8 {[%clk 0:00:05]} 71. Kb5 {[%clk 0:01:10]}  Nf6 {[%clk 0:00:05]} 72. Kc6 {[%clk 0:01:09]}  Nh7 {[%clk 0:00:05]} 73. Kd6 {[%clk 0:01:10]}  Kc8 {[%clk 0:00:06]} 74. Ke6 {[%clk 0:01:09]}  Ng5+ {[%clk 0:00:05]} 75. Kf6 {[%clk 0:01:10]}  Nh7+ {[%clk 0:00:06]} 76. Kg7 {[%clk 0:01:10]}  Ng5 {[%clk 0:00:07]} 77. h7 {[%clk 0:01:11]}  Nxh7 {[%clk 0:00:07]} 78. Kxh7 {[%clk 0:01:11]}  Kb7 {[%clk 0:00:08]} 79. Kg7 {[%clk 0:01:11]}  Kc6 {[%clk 0:00:08]} 80. Kf7 {[%clk 0:01:12]}  Kb7 {[%clk 0:00:09]} 81. Ke7 {[%clk 0:01:13]}  Ka8 {[%clk 0:00:09]} 82. Kd7 {[%clk 0:01:13]}  Kb8 {[%clk 0:00:10]} 83. Kc6 {[%clk 0:01:13]}  Ka8 {[%clk 0:00:11]} 84. Kd7 {[%clk 0:01:09]}  Kb8 {[%clk 0:00:12]} 85. c6 {[%clk 0:01:08]}  Ka8 {[%clk 0:00:13]} 86. c7 {[%clk 0:01:08]}  Kb7 {[%clk 0:00:14]} 87. c8=Q# {[%clk 0:01:08]} 1-0


[Site "https://www.chess.com"]

[Event "Titled Tuesday Blitz October 31 Late 2023"]
[White "Todorovic, Bojan"]
[Black "Martinez Reyes, Pedro Ramon"]
[WhiteFideId "917087"]
[BlackFideId "3901807"]
[WhiteElo "2383"]
[BlackElo "2610"]
[Result "0-1"]
[Round "8"]
[TimeControl "180+1"]
[Date "2023.10.31"]
[WhiteClock "0:00:10"]
[BlackClock "0:01:11"]
[Board "95"]

1. Nf3 {[%clk 0:02:56]}  d6 {[%clk 0:02:41]} 2. d4 {[%clk 0:02:53]}  Nf6 {[%clk 0:02:42]} 3. c4 {[%clk 0:02:50]}  g6 {[%clk 0:02:33]} 4. Nc3 {[%clk 0:02:49]}  Bg7 {[%clk 0:02:34]} 5. e4 {[%clk 0:02:48]}  O-O {[%clk 0:02:35]} 6. Be2 {[%clk 0:02:47]}  c5 {[%clk 0:02:35]} 7. d5 {[%clk 0:02:46]}  e6 {[%clk 0:02:35]} 8. O-O {[%clk 0:02:45]}  exd5 {[%clk 0:02:36]} 9. cxd5 {[%clk 0:02:45]}  Re8 {[%clk 0:02:36]} 10. Nd2 {[%clk 0:02:45]}  Na6 {[%clk 0:02:35]} 11. f3 {[%clk 0:02:42]}  Nc7 {[%clk 0:02:35]} 12. a4 {[%clk 0:02:28]}  b6 {[%clk 0:02:34]} 13. Nc4 {[%clk 0:02:24]}  Ba6 {[%clk 0:02:32]} 14. Kh1 {[%clk 0:02:24]}  Bxc4 {[%clk 0:02:32]} 15. Bxc4 {[%clk 0:02:23]}  a6 {[%clk 0:02:33]} 16. Bg5 {[%clk 0:02:13]}  h6 {[%clk 0:02:30]} 17. Bh4 {[%clk 0:02:12]}  g5 {[%clk 0:02:31]} 18. Bf2 {[%clk 0:02:05]}  Rb8 {[%clk 0:02:29]} 19. Qd3 {[%clk 0:02:00]}  Qc8 {[%clk 0:02:24]} 20. Rab1 {[%clk 0:01:52]}  Nd7 {[%clk 0:02:23]} 21. Bg3 {[%clk 0:01:35]}  Ne5 {[%clk 0:02:21]} 22. Bxe5 {[%clk 0:01:34]}  Bxe5 {[%clk 0:02:22]} 23. b4 {[%clk 0:01:20]}  cxb4 {[%clk 0:02:04]} 24. Rxb4 {[%clk 0:01:19]}  b5 {[%clk 0:02:05]} 25. axb5 {[%clk 0:01:17]}  Nxb5 {[%clk 0:01:58]} 26. Nxb5 {[%clk 0:01:16]}  Qc5 {[%clk 0:01:50]} 27. Rfb1 {[%clk 0:00:56]}  axb5 {[%clk 0:01:47]} 28. Bxb5 {[%clk 0:00:47]}  Rec8 {[%clk 0:01:44]} 29. g3 {[%clk 0:00:43]}  Qf2 {[%clk 0:01:42]} 30. Qf1 {[%clk 0:00:39]}  Qc2 {[%clk 0:01:28]} 31. Bc6 {[%clk 0:00:36]}  Rxb4 {[%clk 0:01:22]} 32. Rxb4 {[%clk 0:00:35]}  Kg7 {[%clk 0:01:19]} 33. Rc4 {[%clk 0:00:32]}  Qb3 {[%clk 0:01:16]} 34. Rc1 {[%clk 0:00:28]}  Rb8 {[%clk 0:01:16]} 35. f4 {[%clk 0:00:27]}  Bd4 {[%clk 0:01:13]} 36. Qg2 {[%clk 0:00:15]}  Qe3 {[%clk 0:01:12]} 37. Rf1 {[%clk 0:00:11]}  Rb2 {[%clk 0:01:12]} 38. Qf3 {[%clk 0:00:11]}  Qd2 {[%clk 0:01:11]} 39. Qh5 {[%clk 0:00:10]}  Qg2# {[%clk 0:01:11]} 0-1


[Site "https://www.chess.com"]

[Event "Titled Tuesday Blitz October 31 Late 2023"]
[White "Estrada Nieto, Julian"]
[Black "Martinez, Shawn"]
[WhiteFideId "5101018"]
[BlackFideId "2039770"]
[WhiteElo "2489"]
[BlackElo "2360"]
[Result "1-0"]
[Round "8"]
[TimeControl "180+1"]
[Date "2023.10.31"]
[WhiteClock "0:00:54"]
[BlackClock "0:00:23"]
[Board "96"]

1. e4 {[%clk 0:03:00]}  c5 {[%clk 0:02:58]} 2. Nf3 {[%clk 0:03:01]}  e6 {[%clk 0:02:58]} 3. c3 {[%clk 0:03:00]}  a6 {[%clk 0:02:56]} 4. d4 {[%clk 0:02:59]}  cxd4 {[%clk 0:02:51]} 5. cxd4 {[%clk 0:02:59]}  Nf6 {[%clk 0:02:52]} 6. Nc3 {[%clk 0:02:57]}  b5 {[%clk 0:02:49]} 7. e5 {[%clk 0:02:56]}  Nd5 {[%clk 0:02:44]} 8. Nxd5 {[%clk 0:02:56]}  exd5 {[%clk 0:02:44]} 9. Bd3 {[%clk 0:02:56]}  Be7 {[%clk 0:02:42]} 10. O-O {[%clk 0:02:54]}  O-O {[%clk 0:02:35]} 11. Bf4 {[%clk 0:02:49]}  d6 {[%clk 0:02:32]} 12. h3 {[%clk 0:02:48]}  dxe5 {[%clk 0:02:25]} 13. Nxe5 {[%clk 0:02:48]}  Be6 {[%clk 0:02:22]} 14. Rc1 {[%clk 0:02:47]}  Bg5 {[%clk 0:02:15]} 15. Qd2 {[%clk 0:02:34]}  Bxf4 {[%clk 0:02:13]} 16. Qxf4 {[%clk 0:02:34]}  Nd7 {[%clk 0:02:09]} 17. a3 {[%clk 0:01:57]}  Nf6 {[%clk 0:01:39]} 18. Rc5 {[%clk 0:01:47]}  Rc8 {[%clk 0:01:32]} 19. Rfc1 {[%clk 0:01:45]}  Qa5 {[%clk 0:01:29]} 20. Nc6 {[%clk 0:01:30]}  Qc7 {[%clk 0:01:14]} 21. Qh4 {[%clk 0:01:26]}  Qd6 {[%clk 0:01:06]} 22. b4 {[%clk 0:01:21]}  h6 {[%clk 0:01:05]} 23. Bb1 {[%clk 0:01:06]}  Rc7 {[%clk 0:01:00]} 24. Qg3 {[%clk 0:00:56]}  Qxg3 {[%clk 0:00:56]} 25. fxg3 {[%clk 0:00:56]}  Nd7 {[%clk 0:00:23]} 26. Ne7+ {[%clk 0:00:54]} 1-0


[Site "https://www.chess.com"]

[Event "Titled Tuesday Blitz October 31 Late 2023"]
[White "Su, Dion"]
[Black "Bazzano, Sebastian"]
[WhiteFideId "2029731"]
[BlackFideId "104566"]
[WhiteElo "2416"]
[BlackElo "2277"]
[Result "0-1"]
[Round "8"]
[TimeControl "180+1"]
[Date "2023.10.31"]
[WhiteClock "0:00:31"]
[BlackClock "0:00:13"]
[Board "99"]

1. e4 {[%clk 0:03:00]}  e6 {[%clk 0:03:00]} 2. d4 {[%clk 0:03:00]}  d5 {[%clk 0:03:00]} 3. Nd2 {[%clk 0:03:01]}  dxe4 {[%clk 0:03:00]} 4. Nxe4 {[%clk 0:03:01]}  Bd7 {[%clk 0:03:01]} 5. Nf3 {[%clk 0:03:01]}  Bc6 {[%clk 0:03:01]} 6. Ng3 {[%clk 0:03:01]}  Nd7 {[%clk 0:02:59]} 7. Bd3 {[%clk 0:03:01]}  Ngf6 {[%clk 0:02:59]} 8. Qe2 {[%clk 0:03:01]}  Bxf3 {[%clk 0:02:58]} 9. Qxf3 {[%clk 0:03:00]}  c6 {[%clk 0:02:58]} 10. c3 {[%clk 0:02:58]}  Bd6 {[%clk 0:02:55]} 11. Bd2 {[%clk 0:02:58]}  O-O {[%clk 0:02:53]} 12. O-O-O {[%clk 0:02:58]}  c5 {[%clk 0:02:41]} 13. Bg5 {[%clk 0:02:47]}  cxd4 {[%clk 0:02:40]} 14. Bc2 {[%clk 0:02:36]}  Qa5 {[%clk 0:02:20]} 15. Rxd4 {[%clk 0:02:31]}  Qxg5+ {[%clk 0:02:19]} 16. Kb1 {[%clk 0:02:16]}  Bxg3 {[%clk 0:02:17]} 17. hxg3 {[%clk 0:02:14]}  h6 {[%clk 0:02:17]} 18. Qd3 {[%clk 0:02:08]}  Ne5 {[%clk 0:02:09]} 19. f4 {[%clk 0:02:02]}  Nxd3 {[%clk 0:02:02]} 20. fxg5 {[%clk 0:02:02]}  Nf2 {[%clk 0:01:45]} 21. Rf1 {[%clk 0:01:53]}  N6g4 {[%clk 0:01:40]} 22. g6 {[%clk 0:01:49]}  fxg6 {[%clk 0:01:32]} 23. Bxg6 {[%clk 0:01:49]}  Rad8 {[%clk 0:01:25]} 24. Rb4 {[%clk 0:01:41]}  b6 {[%clk 0:01:21]} 25. Bh5 {[%clk 0:01:34]}  Ne3 {[%clk 0:01:10]} 26. Re1 {[%clk 0:01:33]}  Nf5 {[%clk 0:00:41]} 27. Rxe6 {[%clk 0:01:28]}  Nxg3 {[%clk 0:00:40]} 28. Bf3 {[%clk 0:01:28]}  Nd3 {[%clk 0:00:35]} 29. Rg4 {[%clk 0:01:23]}  Nf5 {[%clk 0:00:26]} 30. Be4 {[%clk 0:01:09]}  Nc5 {[%clk 0:00:25]} 31. Bxf5 {[%clk 0:01:08]}  Rxf5 {[%clk 0:00:26]} 32. Re7 {[%clk 0:01:08]}  Rf7 {[%clk 0:00:26]} 33. Rxf7 {[%clk 0:01:02]}  Kxf7 {[%clk 0:00:26]} 34. b4 {[%clk 0:01:01]}  Ne6 {[%clk 0:00:25]} 35. a4 {[%clk 0:00:59]}  Rd2 {[%clk 0:00:25]} 36. g3 {[%clk 0:00:54]}  g5 {[%clk 0:00:25]} 37. Rc4 {[%clk 0:00:53]}  h5 {[%clk 0:00:23]} 38. Rc8 {[%clk 0:00:53]}  Rd3 {[%clk 0:00:22]} 39. Kc2 {[%clk 0:00:51]}  Rxg3 {[%clk 0:00:22]} 40. Ra8 {[%clk 0:00:52]}  h4 {[%clk 0:00:22]} 41. Rxa7+ {[%clk 0:00:52]}  Kf6 {[%clk 0:00:22]} 42. Rh7 {[%clk 0:00:50]}  h3 {[%clk 0:00:21]} 43. a5 {[%clk 0:00:47]}  bxa5 {[%clk 0:00:22]} 44. bxa5 {[%clk 0:00:48]}  Rg2+ {[%clk 0:00:20]} 45. Kb3 {[%clk 0:00:47]}  h2 {[%clk 0:00:19]} 46. Kb4 {[%clk 0:00:39]}  Kf5 {[%clk 0:00:18]} 47. a6 {[%clk 0:00:37]}  g4 {[%clk 0:00:17]} 48. a7 {[%clk 0:00:36]}  Ra2 {[%clk 0:00:17]} 49. Rxh2 {[%clk 0:00:36]}  Rxa7 {[%clk 0:00:17]} 50. c4 {[%clk 0:00:34]}  Kf4 {[%clk 0:00:15]} 51. c5 {[%clk 0:00:33]}  g3 {[%clk 0:00:14]} 52. Rh8 {[%clk 0:00:33]}  Nxc5 {[%clk 0:00:13]} 53. Kxc5 {[%clk 0:00:31]}  Rd7 {[%clk 0:00:13]} 0-1


[Site "https://www.chess.com"]

[Event "Titled Tuesday Blitz October 31 Late 2023"]
[White "Tifferet, Shaked"]
[Black "Freeeeeeeeeeeeeeeeee"]
[WhiteFideId "2811529"]
[WhiteElo "2549"]
[BlackElo "2054"]
[Result "1-0"]
[Round "8"]
[TimeControl "180+1"]
[Date "2023.10.31"]
[WhiteClock "0:00:33"]
[BlackClock "0:00:00"]
[Board "103"]

1. e4 {[%clk 0:03:00]}  d6 {[%clk 0:02:58]} 2. d4 {[%clk 0:02:57]}  e6 {[%clk 0:02:58]} 3. h4 {[%clk 0:02:56]}  Nf6 {[%clk 0:02:55]} 4. Nc3 {[%clk 0:02:55]}  Nbd7 {[%clk 0:02:49]} 5. f3 {[%clk 0:02:52]}  c5 {[%clk 0:02:49]} 6. Nge2 {[%clk 0:02:51]}  cxd4 {[%clk 0:02:48]} 7. Nxd4 {[%clk 0:02:50]}  a6 {[%clk 0:02:49]} 8. h5 {[%clk 0:02:49]}  Qc7 {[%clk 0:02:36]} 9. h6 {[%clk 0:02:35]}  g6 {[%clk 0:02:33]} 10. Be3 {[%clk 0:02:34]}  b5 {[%clk 0:02:29]} 11. Bd3 {[%clk 0:02:32]}  Bb7 {[%clk 0:02:29]} 12. O-O {[%clk 0:02:28]}  Ne5 {[%clk 0:02:17]} 13. a4 {[%clk 0:02:23]}  b4 {[%clk 0:02:16]} 14. Nce2 {[%clk 0:02:23]}  Be7 {[%clk 0:02:11]} 15. Nf4 {[%clk 0:02:17]}  Nxd3 {[%clk 0:02:05]} 16. Nxd3 {[%clk 0:02:11]}  e5 {[%clk 0:02:03]} 17. Ne2 {[%clk 0:02:10]}  O-O {[%clk 0:01:57]} 18. Nxb4 {[%clk 0:02:07]}  Rfd8 {[%clk 0:01:52]} 19. Nc3 {[%clk 0:01:59]}  Qc4 {[%clk 0:01:44]} 20. Nbd5 {[%clk 0:01:56]}  Nxd5 {[%clk 0:01:42]} 21. Nxd5 {[%clk 0:01:56]}  Bxd5 {[%clk 0:01:42]} 22. Qxd5 {[%clk 0:01:54]}  Qxc2 {[%clk 0:01:36]} 23. Rac1 {[%clk 0:01:52]}  Qxa4 {[%clk 0:01:36]} 24. Rc7 {[%clk 0:01:50]}  Qe8 {[%clk 0:01:32]} 25. b4 {[%clk 0:01:41]}  Rab8 {[%clk 0:01:26]} 26. Bd2 {[%clk 0:01:25]}  Rb5 {[%clk 0:01:21]} 27. Qc6 {[%clk 0:01:24]}  d5 {[%clk 0:01:11]} 28. exd5 {[%clk 0:01:17]}  Qxc6 {[%clk 0:01:03]} 29. dxc6 {[%clk 0:01:12]}  Bxb4 {[%clk 0:00:45]} 30. Bg5 {[%clk 0:01:05]}  Re8 {[%clk 0:00:40]} 31. Rd7 {[%clk 0:00:57]}  e4 {[%clk 0:00:38]} 32. c7 {[%clk 0:00:58]}  Rc5 {[%clk 0:00:09]} 33. Be3 {[%clk 0:00:43]}  Rc6 {[%clk 0:00:08]} 34. fxe4 {[%clk 0:00:36]}  Bd6 {[%clk 0:00:00]} 35. Rfxf7 {[%clk 0:00:33]} 1-0


[Site "https://www.chess.com"]

[Event "Titled Tuesday Blitz October 31 Late 2023"]
[White "Chocenka, Dmitrijus"]
[Black "Kujawski, Adam"]
[WhiteFideId "12802336"]
[BlackFideId "1100920"]
[WhiteElo "2481"]
[BlackElo "2325"]
[Result "0-1"]
[Round "8"]
[TimeControl "180+1"]
[Date "2023.10.31"]
[WhiteClock "0:00:27"]
[BlackClock "0:00:10"]
[Board "106"]

1. e4 {[%clk 0:03:00]}  e5 {[%clk 0:02:03]} 2. Nf3 {[%clk 0:02:59]}  Nc6 {[%clk 0:02:03]} 3. Bc4 {[%clk 0:02:59]}  Nf6 {[%clk 0:02:03]} 4. d3 {[%clk 0:02:58]}  d5 {[%clk 0:02:03]} 5. exd5 {[%clk 0:02:58]}  Nxd5 {[%clk 0:02:04]} 6. O-O {[%clk 0:02:58]}  Nb6 {[%clk 0:02:04]} 7. Bb5 {[%clk 0:02:49]}  Bd6 {[%clk 0:02:03]} 8. Re1 {[%clk 0:02:47]}  f6 {[%clk 0:02:03]} 9. d4 {[%clk 0:02:45]}  O-O {[%clk 0:02:02]} 10. Bxc6 {[%clk 0:02:41]}  bxc6 {[%clk 0:02:03]} 11. dxe5 {[%clk 0:02:38]}  fxe5 {[%clk 0:02:04]} 12. h3 {[%clk 0:02:34]}  e4 {[%clk 0:01:54]} 13. Bg5 {[%clk 0:02:19]}  Qe8 {[%clk 0:01:46]} 14. Nc3 {[%clk 0:02:17]}  Bf5 {[%clk 0:01:33]} 15. Nh4 {[%clk 0:02:02]}  Qe5 {[%clk 0:01:29]} 16. f4 {[%clk 0:01:57]}  Qc5+ {[%clk 0:01:12]} 17. Kh1 {[%clk 0:01:57]}  h6 {[%clk 0:01:04]} 18. Nxf5 {[%clk 0:01:57]}  Qxf5 {[%clk 0:00:55]} 19. Nxe4 {[%clk 0:01:26]}  hxg5 {[%clk 0:00:51]} 20. fxg5 {[%clk 0:01:27]}  Rae8 {[%clk 0:00:43]} 21. Nxd6 {[%clk 0:01:23]}  Rxe1+ {[%clk 0:00:43]} 22. Qxe1 {[%clk 0:01:23]}  cxd6 {[%clk 0:00:43]} 23. Qg3 {[%clk 0:01:17]}  Qf4 {[%clk 0:00:35]} 24. Qd3 {[%clk 0:01:09]}  Nd5 {[%clk 0:00:28]} 25. c4 {[%clk 0:01:06]}  Ne3 {[%clk 0:00:27]} 26. Re1 {[%clk 0:00:59]}  Nxg2 {[%clk 0:00:23]} 27. Re7 {[%clk 0:00:45]}  Nh4 {[%clk 0:00:18]} 28. Qe2 {[%clk 0:00:39]}  Qc1+ {[%clk 0:00:13]} 29. Kh2 {[%clk 0:00:38]}  Nf3+ {[%clk 0:00:10]} 30. Kg3 {[%clk 0:00:33]}  Qxg5+ {[%clk 0:00:10]} 31. Kf2 {[%clk 0:00:27]}  Nd4+ {[%clk 0:00:10]} 0-1


[Site "https://www.chess.com"]

[Event "Titled Tuesday Blitz October 31 Late 2023"]
[White "iJueles"]
[Black "SlippperyWhenWet"]
[WhiteElo "2439"]
[BlackElo "2316"]
[Result "1-0"]
[Round "8"]
[TimeControl "180+1"]
[Date "2023.10.31"]
[WhiteClock "0:01:19"]
[BlackClock "0:00:47"]
[Board "107"]

1. d4 {[%clk 0:03:00]}  d5 {[%clk 0:02:58]} 2. c4 {[%clk 0:03:00]}  e6 {[%clk 0:02:56]} 3. Nc3 {[%clk 0:02:59]}  Nf6 {[%clk 0:02:55]} 4. Bg5 {[%clk 0:02:59]}  Be7 {[%clk 0:02:55]} 5. e3 {[%clk 0:02:59]}  O-O {[%clk 0:02:54]} 6. Qc2 {[%clk 0:02:59]}  Nbd7 {[%clk 0:02:52]} 7. cxd5 {[%clk 0:02:57]}  Nxd5 {[%clk 0:02:52]} 8. Bxe7 {[%clk 0:02:57]}  Qxe7 {[%clk 0:02:49]} 9. Bd3 {[%clk 0:02:57]}  N7f6 {[%clk 0:02:48]} 10. a3 {[%clk 0:02:55]}  Nxc3 {[%clk 0:02:47]} 11. bxc3 {[%clk 0:02:54]}  e5 {[%clk 0:02:48]} 12. Ne2 {[%clk 0:02:52]}  c5 {[%clk 0:02:48]} 13. O-O {[%clk 0:02:49]}  cxd4 {[%clk 0:02:48]} 14. cxd4 {[%clk 0:02:49]}  Bg4 {[%clk 0:02:48]} 15. dxe5 {[%clk 0:02:44]}  Qxe5 {[%clk 0:02:46]} 16. Nd4 {[%clk 0:02:41]}  Rac8 {[%clk 0:02:45]} 17. Qb3 {[%clk 0:02:40]}  b6 {[%clk 0:02:39]} 18. Rac1 {[%clk 0:02:37]}  Bd7 {[%clk 0:02:17]} 19. Ba6 {[%clk 0:02:30]}  Rxc1 {[%clk 0:02:16]} 20. Rxc1 {[%clk 0:02:31]}  Ne4 {[%clk 0:02:15]} 21. Bb7 {[%clk 0:02:24]}  Nc5 {[%clk 0:02:15]} 22. Qd5 {[%clk 0:02:20]}  Qxd5 {[%clk 0:02:12]} 23. Bxd5 {[%clk 0:02:20]}  Be6 {[%clk 0:02:03]} 24. Bxe6 {[%clk 0:02:15]}  fxe6 {[%clk 0:01:59]} 25. Kf1 {[%clk 0:02:05]}  Rxf2+ {[%clk 0:01:53]} 26. Kxf2 {[%clk 0:02:03]}  Nd3+ {[%clk 0:01:54]} 27. Kf3 {[%clk 0:02:04]}  Nxc1 {[%clk 0:01:53]} 28. Nxe6 {[%clk 0:02:03]}  Nb3 {[%clk 0:01:46]} 29. Ke4 {[%clk 0:01:59]}  Kf7 {[%clk 0:01:44]} 30. Kd5 {[%clk 0:01:57]}  Nd2 {[%clk 0:01:31]} 31. Nd8+ {[%clk 0:01:55]}  Kf6 {[%clk 0:01:29]} 32. e4 {[%clk 0:01:54]}  Nb1 {[%clk 0:01:28]} 33. e5+ {[%clk 0:01:52]}  Ke7 {[%clk 0:01:21]} 34. Nc6+ {[%clk 0:01:52]}  Ke8 {[%clk 0:01:22]} 35. Nxa7 {[%clk 0:01:44]}  Nxa3 {[%clk 0:01:22]} 36. e6 {[%clk 0:01:42]}  b5 {[%clk 0:01:18]} 37. Nc8 {[%clk 0:01:39]}  Nc4 {[%clk 0:01:14]} 38. Kc5 {[%clk 0:01:32]}  Ne3 {[%clk 0:01:04]} 39. Kxb5 {[%clk 0:01:27]}  Nxg2 {[%clk 0:01:04]} 40. Kc5 {[%clk 0:01:25]}  Nf4 {[%clk 0:01:04]} 41. Kd6 {[%clk 0:01:25]}  g5 {[%clk 0:01:03]} 42. Ke5 {[%clk 0:01:24]}  Ng6+ {[%clk 0:00:59]} 43. Kf6 {[%clk 0:01:23]}  g4 {[%clk 0:00:56]} 44. Nd6+ {[%clk 0:01:23]}  Kf8 {[%clk 0:00:54]} 45. Nf5 {[%clk 0:01:22]}  h5 {[%clk 0:00:51]} 46. Kxg6 {[%clk 0:01:19]}  h4 {[%clk 0:00:49]} 47. Nxh4 {[%clk 0:01:18]}  Ke7 {[%clk 0:00:49]} 48. Kf5 {[%clk 0:01:19]}  g3 {[%clk 0:00:47]} 49. hxg3 {[%clk 0:01:19]} 1-0


[Site "https://www.chess.com"]

[Event "Titled Tuesday Blitz October 31 Late 2023"]
[White "Shapiro, Daniel"]
[Black "Liu, Casper"]
[WhiteFideId "2001780"]
[BlackFideId "1454153"]
[WhiteElo "2316"]
[BlackElo "2426"]
[Result "1-0"]
[Round "8"]
[TimeControl "180+1"]
[Date "2023.10.31"]
[WhiteClock "0:00:04"]
[BlackClock "0:00:00"]
[Board "109"]

1. d4 {[%clk 0:02:57]}  Nf6 {[%clk 0:02:59]} 2. c4 {[%clk 0:02:56]}  g6 {[%clk 0:03:00]} 3. Nc3 {[%clk 0:02:56]}  Bg7 {[%clk 0:03:00]} 4. e4 {[%clk 0:02:55]}  O-O {[%clk 0:03:01]} 5. Be2 {[%clk 0:02:56]}  d6 {[%clk 0:03:02]} 6. Nf3 {[%clk 0:02:56]}  Nc6 {[%clk 0:03:01]} 7. O-O {[%clk 0:02:51]}  Bg4 {[%clk 0:03:01]} 8. Be3 {[%clk 0:02:44]}  e5 {[%clk 0:02:59]} 9. dxe5 {[%clk 0:02:33]}  Bxf3 {[%clk 0:02:56]} 10. gxf3 {[%clk 0:02:19]}  Nxe5 {[%clk 0:02:55]} 11. f4 {[%clk 0:02:16]}  Nc6 {[%clk 0:02:52]} 12. Bf3 {[%clk 0:02:10]}  Re8 {[%clk 0:02:52]} 13. Qc2 {[%clk 0:02:04]}  Nd7 {[%clk 0:02:48]} 14. Rad1 {[%clk 0:02:03]}  Qh4 {[%clk 0:02:47]} 15. Nd5 {[%clk 0:01:56]}  Nde5 {[%clk 0:01:54]} 16. fxe5 {[%clk 0:01:21]}  Bxe5 {[%clk 0:01:53]} 17. Rfe1 {[%clk 0:01:15]}  Bxh2+ {[%clk 0:01:14]} 18. Kf1 {[%clk 0:01:13]}  Ne5 {[%clk 0:01:15]} 19. Bg2 {[%clk 0:01:05]}  Rac8 {[%clk 0:01:03]} 20. Qc3 {[%clk 0:00:53]}  c6 {[%clk 0:00:59]} 21. Nb4 {[%clk 0:00:52]}  Ng4 {[%clk 0:00:55]} 22. c5 {[%clk 0:00:29]}  Re6 {[%clk 0:00:44]} 23. cxd6 {[%clk 0:00:23]}  Rf6 {[%clk 0:00:44]} 24. Rd2 {[%clk 0:00:17]}  Bg3 {[%clk 0:00:30]} 25. Ree2 {[%clk 0:00:14]}  Rd8 {[%clk 0:00:18]} 26. Bxa7 {[%clk 0:00:13]}  Be5 {[%clk 0:00:14]} 27. Qd3 {[%clk 0:00:10]}  Rfxd6 {[%clk 0:00:13]} 28. Qc2 {[%clk 0:00:09]}  Qf6 {[%clk 0:00:07]} 29. Bc5 {[%clk 0:00:09]}  Rxd2 {[%clk 0:00:06]} 30. Rxd2 {[%clk 0:00:09]}  Bd4 {[%clk 0:00:03]} 31. Bxd4 {[%clk 0:00:08]}  Rxd4 {[%clk 0:00:03]} 32. Rxd4 {[%clk 0:00:08]}  Qxd4 {[%clk 0:00:04]} 33. Nd3 {[%clk 0:00:08]}  Qf6 {[%clk 0:00:04]} 34. Qe2 {[%clk 0:00:07]}  h5 {[%clk 0:00:04]} 35. e5 {[%clk 0:00:07]}  Qe7 {[%clk 0:00:04]} 36. Ke1 {[%clk 0:00:07]}  Qd8 {[%clk 0:00:03]} 37. f4 {[%clk 0:00:07]}  Qa5+ {[%clk 0:00:03]} 38. Kf1 {[%clk 0:00:07]}  Qxa2 {[%clk 0:00:03]} 39. e6 {[%clk 0:00:04]}  fxe6 {[%clk 0:00:00]} 40. Qe4 {[%clk 0:00:04]} 1-0


[Site "https://www.chess.com"]